[Event "Titled Tuesday Blitz November 01 Late 2022"]
[White "Chojnacki, Slawomir"]
[Black "Gunduz, Umut Erdem"]
[WhiteFideId "1117076"]
[BlackFideId "6381383"]
[WhiteElo "2096"]
[BlackElo "2182"]
[Result "1-0"]
[Round "03"]
[TimeControl "180+1"]
[Date "2022.11.02"]
[WhiteClock "0:00:36"]
[BlackClock "0:00:03"]

1. d4 {[%clk 0:02:57]}  Nf6 {[%clk 0:02:59]} 2. Nf3 {[%clk 0:02:58]}  c5 {[%clk 0:02:59]} 3. c3 {[%clk 0:02:58]}  cxd4 {[%clk 0:02:53]} 4. cxd4 {[%clk 0:02:57]}  g6 {[%clk 0:02:49]} 5. Nc3 {[%clk 0:02:57]}  d5 {[%clk 0:02:48]} 6. Bg5 {[%clk 0:02:58]}  Bg7 {[%clk 0:02:48]} 7. Qb3 {[%clk 0:02:55]}  e6 {[%clk 0:02:43]} 8. Qa3 {[%clk 0:02:50]}  Nc6 {[%clk 0:02:18]} 9. e3 {[%clk 0:02:47]}  h6 {[%clk 0:02:16]} 10. Bh4 {[%clk 0:02:46]}  g5 {[%clk 0:02:15]} 11. Bg3 {[%clk 0:02:46]}  Bf8 {[%clk 0:02:14]} 12. Qb3 {[%clk 0:02:40]}  Bb4 {[%clk 0:02:04]} 13. Bb5 {[%clk 0:02:36]}  O-O {[%clk 0:01:52]} 14. h4 {[%clk 0:02:21]}  g4 {[%clk 0:01:47]} 15. Ne5 {[%clk 0:02:17]}  Bxc3+ {[%clk 0:01:33]} 16. bxc3 {[%clk 0:02:14]}  Bd7 {[%clk 0:01:19]} 17. h5 {[%clk 0:02:03]}  Na5 {[%clk 0:01:01]} 18. Qa4 {[%clk 0:01:56]}  Bxb5 {[%clk 0:01:01]} 19. Qxb5 {[%clk 0:01:56]}  Ne4 {[%clk 0:00:47]} 20. Bh4 {[%clk 0:01:41]}  Qc7 {[%clk 0:00:43]} 21. O-O {[%clk 0:01:36]}  f5 {[%clk 0:00:21]} 22. Ng6 {[%clk 0:01:30]}  Rf7 {[%clk 0:00:20]} 23. Nf4 {[%clk 0:01:29]}  a6 {[%clk 0:00:10]} 24. Qd3 {[%clk 0:01:15]}  Re8 {[%clk 0:00:09]} 25. Rfc1 {[%clk 0:01:12]}  Qc4 {[%clk 0:00:09]} 26. Qb1 {[%clk 0:01:09]}  b5 {[%clk 0:00:08]} 27. a4 {[%clk 0:01:08]}  Nb3 {[%clk 0:00:08]} 28. axb5 {[%clk 0:01:08]}  axb5 {[%clk 0:00:06]} 29. Ra6 {[%clk 0:01:04]}  Nxc1 {[%clk 0:00:06]} 30. Qxc1 {[%clk 0:01:04]}  Nxc3 {[%clk 0:00:06]} 31. Kh2 {[%clk 0:00:39]}  b4 {[%clk 0:00:06]} 32. Rxe6 {[%clk 0:00:35]}  Rxe6 {[%clk 0:00:06]} 33. Nxe6 {[%clk 0:00:36]}  b3 {[%clk 0:00:05]} 34. e4 {[%clk 0:00:37]}  Ne2 {[%clk 0:00:03]} 35. Qxh6 {[%clk 0:00:36]}  Qc1 {[%clk 0:00:04]} 36. Qg6+ {[%clk 0:00:34]}  Kh8 {[%clk 0:00:02]} 37. Bf6+ {[%clk 0:00:34]}  Rxf6 {[%clk 0:00:02]} 38. Qxf6+ {[%clk 0:00:35]}  Kh7 {[%clk 0:00:03]} 39. Qg7# {[%clk 0:00:36]} 1-0


[Site "https://www.chess.com"]

[Event "Titled Tuesday Blitz November 01 Late 2022"]
[White "Clawitter, Craig"]
[Black "Kanyamarala, Trisha"]
[WhiteFideId "2023105"]
[BlackFideId "45004722"]
[WhiteElo "2319"]
[BlackElo "2099"]
[Result "1/2-1/2"]
[Round "03"]
[TimeControl "180+1"]
[Date "2022.11.02"]
[WhiteClock "0:00:05"]
[BlackClock "0:00:19"]

1. e4 {[%clk 0:03:00]}  c5 {[%clk 0:02:59]} 2. Nf3 {[%clk 0:03:00]}  d6 {[%clk 0:02:59]} 3. d4 {[%clk 0:03:01]}  cxd4 {[%clk 0:02:59]} 4. Nxd4 {[%clk 0:03:01]}  Nf6 {[%clk 0:02:58]} 5. Nc3 {[%clk 0:03:01]}  e6 {[%clk 0:02:58]} 6. g4 {[%clk 0:03:00]}  h6 {[%clk 0:02:57]} 7. h4 {[%clk 0:02:59]}  Nc6 {[%clk 0:02:54]} 8. Rg1 {[%clk 0:02:59]}  d5 {[%clk 0:02:51]} 9. g5 {[%clk 0:02:52]}  Nxe4 {[%clk 0:02:48]} 10. Nxe4 {[%clk 0:02:46]}  dxe4 {[%clk 0:02:47]} 11. Nxc6 {[%clk 0:02:25]}  Qxd1+ {[%clk 0:02:46]} 12. Kxd1 {[%clk 0:02:26]}  bxc6 {[%clk 0:02:46]} 13. Bg2 {[%clk 0:02:19]}  hxg5 {[%clk 0:02:42]} 14. Bxe4 {[%clk 0:02:11]}  Bb7 {[%clk 0:02:34]} 15. hxg5 {[%clk 0:02:08]}  Bc5 {[%clk 0:02:31]} 16. Ke2 {[%clk 0:01:40]}  Rh2 {[%clk 0:02:24]} 17. Be3 {[%clk 0:01:35]}  Ba6+ {[%clk 0:02:12]} 18. Kf3 {[%clk 0:01:32]}  Bxe3 {[%clk 0:02:03]} 19. Bxc6+ {[%clk 0:01:25]}  Ke7 {[%clk 0:02:02]} 20. Bxa8 {[%clk 0:01:24]}  Bxf2 {[%clk 0:02:00]} 21. Rg2 {[%clk 0:01:12]}  Rxg2 {[%clk 0:01:56]} 22. Kxg2 {[%clk 0:01:10]}  Be3 {[%clk 0:01:55]} 23. g6 {[%clk 0:01:07]}  f5 {[%clk 0:01:54]} 24. Kf3 {[%clk 0:00:53]}  f4 {[%clk 0:01:48]} 25. Be4 {[%clk 0:00:48]}  e5 {[%clk 0:01:46]} 26. b3 {[%clk 0:00:46]}  Bc8 {[%clk 0:01:38]} 27. Rd1 {[%clk 0:00:39]}  Bd4 {[%clk 0:01:31]} 28. Rd3 {[%clk 0:00:32]}  Ba6 {[%clk 0:01:24]} 29. c4 {[%clk 0:00:29]}  Kd6 {[%clk 0:01:23]} 30. Bd5 {[%clk 0:00:20]}  Bc8 {[%clk 0:01:19]} 31. b4 {[%clk 0:00:18]}  Bf5 {[%clk 0:01:14]} 32. Rxd4 {[%clk 0:00:17]}  exd4 {[%clk 0:01:13]} 33. Kxf4 {[%clk 0:00:18]}  Bb1 {[%clk 0:01:11]} 34. Be4 {[%clk 0:00:12]}  Bxa2 {[%clk 0:01:09]} 35. c5+ {[%clk 0:00:13]}  Ke6 {[%clk 0:01:07]} 36. Bf5+ {[%clk 0:00:13]}  Ke7 {[%clk 0:00:55]} 37. Ke5 {[%clk 0:00:12]}  Bc4 {[%clk 0:00:44]} 38. Kxd4 {[%clk 0:00:12]}  Bf1 {[%clk 0:00:43]} 39. Bd3 {[%clk 0:00:10]}  Bg2 {[%clk 0:00:42]} 40. b5 {[%clk 0:00:10]}  Kd7 {[%clk 0:00:38]} 41. Be4 {[%clk 0:00:10]}  Bf1 {[%clk 0:00:37]} 42. Bc6+ {[%clk 0:00:09]}  Kc7 {[%clk 0:00:37]} 43. Ke5 {[%clk 0:00:09]}  Bc4 {[%clk 0:00:34]} 44. Kd4 {[%clk 0:00:06]}  Bf1 {[%clk 0:00:32]} 45. Be8 {[%clk 0:00:05]}  Be2 {[%clk 0:00:26]} 46. b6+ {[%clk 0:00:01]}  axb6 {[%clk 0:00:25]} 47. cxb6+ {[%clk 0:00:02]}  Kxb6 {[%clk 0:00:25]} 48. Ke5 {[%clk 0:00:03]}  Bh5 {[%clk 0:00:20]} 49. Ke6 {[%clk 0:00:03]}  Bxg6 {[%clk 0:00:19]} 50. Bxg6 {[%clk 0:00:03]}  Kc5 {[%clk 0:00:19]} 51. Kf7 {[%clk 0:00:04]}  Kd4 {[%clk 0:00:19]} 52. Kxg7 {[%clk 0:00:05]} 1/2-1/2


[Site "https://www.chess.com"]

[Event "Titled Tuesday Blitz November 01 Late 2022"]
[White "D`Arruda, Ricardo D."]
[Black "Yi, Richard"]
[WhiteFideId "100692"]
[BlackFideId "2079518"]
[WhiteElo "2478"]
[BlackElo "2147"]
[Result "1-0"]
[Round "03"]
[TimeControl "180+1"]
[Date "2022.11.02"]
[WhiteClock "0:00:41"]
[BlackClock "0:00:09"]

1. d4 {[%clk 0:03:00]}  d5 {[%clk 0:02:56]} 2. Nf3 {[%clk 0:03:00]}  Nf6 {[%clk 0:02:56]} 3. c4 {[%clk 0:03:00]}  c6 {[%clk 0:02:55]} 4. e3 {[%clk 0:03:00]}  e6 {[%clk 0:02:53]} 5. Nc3 {[%clk 0:03:00]}  Nbd7 {[%clk 0:02:52]} 6. Bd3 {[%clk 0:03:00]}  Bd6 {[%clk 0:02:51]} 7. O-O {[%clk 0:03:00]}  O-O {[%clk 0:02:51]} 8. e4 {[%clk 0:03:00]}  e5 {[%clk 0:02:45]} 9. cxd5 {[%clk 0:02:54]}  cxd5 {[%clk 0:02:44]} 10. Nxd5 {[%clk 0:02:49]}  exd4 {[%clk 0:02:28]} 11. Nxd4 {[%clk 0:02:47]}  Nxd5 {[%clk 0:02:17]} 12. exd5 {[%clk 0:02:48]}  Nb6 {[%clk 0:01:58]} 13. Nf5 {[%clk 0:02:38]}  Bxf5 {[%clk 0:01:42]} 14. Bxf5 {[%clk 0:02:39]}  Nxd5 {[%clk 0:01:42]} 15. g3 {[%clk 0:02:31]}  Be7 {[%clk 0:01:35]} 16. Be4 {[%clk 0:02:24]}  Nb4 {[%clk 0:01:25]} 17. Bxb7 {[%clk 0:02:22]}  Rb8 {[%clk 0:01:21]} 18. Be4 {[%clk 0:02:19]}  Qxd1 {[%clk 0:01:14]} 19. Rxd1 {[%clk 0:02:18]}  Bf6 {[%clk 0:01:15]} 20. a3 {[%clk 0:02:09]}  Na6 {[%clk 0:01:14]} 21. Rb1 {[%clk 0:02:07]}  Nc5 {[%clk 0:01:10]} 22. Bc2 {[%clk 0:02:06]}  Nb3 {[%clk 0:01:08]} 23. Be3 {[%clk 0:02:03]}  a5 {[%clk 0:00:57]} 24. a4 {[%clk 0:01:53]}  Rfc8 {[%clk 0:00:55]} 25. Bf5 {[%clk 0:01:31]}  Rc6 {[%clk 0:00:45]} 26. Bd7 {[%clk 0:01:20]}  Rc2 {[%clk 0:00:42]} 27. Bb5 {[%clk 0:01:20]}  h5 {[%clk 0:00:33]} 28. Rd3 {[%clk 0:01:13]}  Nc5 {[%clk 0:00:31]} 29. Rd2 {[%clk 0:01:13]}  Rxd2 {[%clk 0:00:22]} 30. Bxd2 {[%clk 0:01:13]}  Nb3 {[%clk 0:00:18]} 31. Be3 {[%clk 0:01:13]}  Rc8 {[%clk 0:00:16]} 32. Rd1 {[%clk 0:01:03]}  Rc2 {[%clk 0:00:15]} 33. Rd5 {[%clk 0:00:51]}  h4 {[%clk 0:00:14]} 34. gxh4 {[%clk 0:00:49]}  Bxh4 {[%clk 0:00:13]} 35. Bd3 {[%clk 0:00:42]}  Rxb2 {[%clk 0:00:13]} 36. Rb5 {[%clk 0:00:42]}  Bf6 {[%clk 0:00:11]} 37. Rb8+ {[%clk 0:00:41]}  Bd8 {[%clk 0:00:09]} 38. Rxd8# {[%clk 0:00:41]} 1-0


[Site "https://www.chess.com"]

[Event "Titled Tuesday Blitz November 01 Late 2022"]
[White "Daeschler, Florian"]
[Black "Zanette, Edgard Vinicius"]
[WhiteFideId "20678193"]
[BlackFideId "2109263"]
[WhiteElo "2187"]
[BlackElo "2236"]
[Result "1-0"]
[Round "03"]
[TimeControl "180+1"]
[Date "2022.11.02"]
[WhiteClock "0:01:38"]
[BlackClock "0:00:24"]

1. f4 {[%clk 0:03:00]}  Nf6 {[%clk 0:02:52]} 2. Nf3 {[%clk 0:03:00]}  c5 {[%clk 0:02:52]} 3. g3 {[%clk 0:03:00]}  d6 {[%clk 0:02:48]} 4. Bg2 {[%clk 0:03:00]}  Nc6 {[%clk 0:02:39]} 5. O-O {[%clk 0:03:01]}  g6 {[%clk 0:02:33]} 6. d3 {[%clk 0:03:01]}  Bg7 {[%clk 0:02:33]} 7. e4 {[%clk 0:03:01]}  O-O {[%clk 0:02:33]} 8. h3 {[%clk 0:02:55]}  e6 {[%clk 0:02:28]} 9. Be3 {[%clk 0:02:45]}  b6 {[%clk 0:02:26]} 10. Na3 {[%clk 0:02:34]}  Bb7 {[%clk 0:02:22]} 11. g4 {[%clk 0:02:28]}  d5 {[%clk 0:01:58]} 12. e5 {[%clk 0:02:28]}  Nd7 {[%clk 0:01:51]} 13. c4 {[%clk 0:02:27]}  d4 {[%clk 0:01:48]} 14. Bf2 {[%clk 0:02:23]}  a6 {[%clk 0:01:45]} 15. Nb1 {[%clk 0:02:21]}  b5 {[%clk 0:01:43]} 16. b3 {[%clk 0:02:21]}  bxc4 {[%clk 0:01:42]} 17. bxc4 {[%clk 0:02:22]}  Rb8 {[%clk 0:01:43]} 18. Nbd2 {[%clk 0:02:22]}  f6 {[%clk 0:01:34]} 19. exf6 {[%clk 0:02:22]}  Nxf6 {[%clk 0:01:29]} 20. Ng5 {[%clk 0:02:22]}  Qd7 {[%clk 0:01:25]} 21. Nge4 {[%clk 0:02:21]}  Nxe4 {[%clk 0:01:24]} 22. Nxe4 {[%clk 0:02:22]}  Qe7 {[%clk 0:01:21]} 23. Bg3 {[%clk 0:02:19]}  Rbe8 {[%clk 0:01:13]} 24. Rb1 {[%clk 0:02:19]}  Ba8 {[%clk 0:01:13]} 25. Qe1 {[%clk 0:02:12]}  Nb4 {[%clk 0:01:11]} 26. Qe2 {[%clk 0:02:11]}  Nc6 {[%clk 0:00:51]} 27. Rb6 {[%clk 0:02:11]}  Qc7 {[%clk 0:00:50]} 28. Rfb1 {[%clk 0:02:10]}  e5 {[%clk 0:00:51]} 29. f5 {[%clk 0:02:05]}  gxf5 {[%clk 0:00:49]} 30. gxf5 {[%clk 0:02:05]}  Rxf5 {[%clk 0:00:47]} 31. Nxc5 {[%clk 0:02:04]}  Rc8 {[%clk 0:00:35]} 32. Bd5+ {[%clk 0:02:02]}  Kh8 {[%clk 0:00:35]} 33. Ne4 {[%clk 0:01:58]}  Ne7 {[%clk 0:00:35]} 34. Bxa8 {[%clk 0:01:57]}  Rxa8 {[%clk 0:00:36]} 35. Rb7 {[%clk 0:01:58]}  Qd8 {[%clk 0:00:35]} 36. Qg4 {[%clk 0:01:54]}  Rf8 {[%clk 0:00:29]} 37. Ng5 {[%clk 0:01:44]}  Qc8 {[%clk 0:00:27]} 38. Rxe7 {[%clk 0:01:42]}  Qxg4 {[%clk 0:00:25]} 39. hxg4 {[%clk 0:01:43]}  Bf6 {[%clk 0:00:26]} 40. Rxh7+ {[%clk 0:01:40]}  Kg8 {[%clk 0:00:26]} 41. Rh5 {[%clk 0:01:41]}  Rab8 {[%clk 0:00:24]} 42. Rxb8 {[%clk 0:01:38]}  Rxb8 {[%clk 0:00:25]} 43. Ne4 {[%clk 0:01:38]}  Rb1+ {[%clk 0:00:24]} 44. Kg2 {[%clk 0:01:38]}  Bg7 {[%clk 0:00:25]} 45. Bxe5 {[%clk 0:01:38]}  Rb2+ {[%clk 0:00:24]} 46. Kf3 {[%clk 0:01:38]}  Rxa2 {[%clk 0:00:24]} 47. Rg5 {[%clk 0:01:38]} 1-0


[Site "https://www.chess.com"]

[Event "Titled Tuesday Blitz November 01 Late 2022"]
[White "Dahlgren, James Allen"]
[Black "Tanenbaum, Zachary"]
[WhiteFideId "22256873"]
[BlackFideId "2060850"]
[WhiteElo "2217"]
[BlackElo "2175"]
[Result "0-1"]
[Round "03"]
[TimeControl "180+1"]
[Date "2022.11.02"]
[WhiteClock "0:01:48"]
[BlackClock "0:01:10"]

1. e4 {[%clk 0:02:54]}  e5 {[%clk 0:02:59]} 2. Nc3 {[%clk 0:02:54]}  Nc6 {[%clk 0:03:00]} 3. f4 {[%clk 0:02:55]}  exf4 {[%clk 0:03:00]} 4. Nf3 {[%clk 0:02:55]}  g5 {[%clk 0:03:00]} 5. d4 {[%clk 0:02:56]}  Bg7 {[%clk 0:02:59]} 6. Bc4 {[%clk 0:02:55]}  d6 {[%clk 0:02:57]} 7. O-O {[%clk 0:02:55]}  g4 {[%clk 0:02:56]} 8. Bxf4 {[%clk 0:02:54]}  gxf3 {[%clk 0:02:56]} 9. Qe1 {[%clk 0:02:54]}  Nxd4 {[%clk 0:02:52]} 10. gxf3 {[%clk 0:02:51]}  Nxc2 {[%clk 0:02:46]} 11. Qg3 {[%clk 0:02:50]}  Bd4+ {[%clk 0:02:45]} 12. Kh1 {[%clk 0:02:50]}  Nxa1 {[%clk 0:02:44]} 13. Rxa1 {[%clk 0:02:51]}  Be6 {[%clk 0:02:32]} 14. Nd5 {[%clk 0:02:48]}  Ne7 {[%clk 0:02:18]} 15. Rd1 {[%clk 0:02:45]}  Bxd5 {[%clk 0:02:16]} 16. exd5 {[%clk 0:02:41]}  Rg8 {[%clk 0:02:03]} 17. Qh4 {[%clk 0:02:31]}  Be5 {[%clk 0:01:30]} 18. Bxe5 {[%clk 0:02:21]}  dxe5 {[%clk 0:01:31]} 19. Qxh7 {[%clk 0:02:19]}  Qd6 {[%clk 0:01:19]} 20. Bb5+ {[%clk 0:02:05]}  c6 {[%clk 0:01:19]} 21. Ba4 {[%clk 0:02:03]}  O-O-O {[%clk 0:01:14]} 22. Qxf7 {[%clk 0:01:57]}  Rdf8 {[%clk 0:01:13]} 23. Qh5 {[%clk 0:01:48]}  Nxd5 {[%clk 0:01:10]} 0-1


[Site "https://www.chess.com"]

[Event "Titled Tuesday Blitz November 01 Late 2022"]
[White "Darini, Pouria"]
[Black "Hajiyev, Kanan"]
[WhiteFideId "12502200"]
[BlackFideId "13404148"]
[WhiteElo "2483"]
[BlackElo "2118"]
[Result "1-0"]
[Round "03"]
[TimeControl "180+1"]
[Date "2022.11.02"]
[WhiteClock "0:00:14"]
[BlackClock "0:00:16"]

1. Nf3 {[%clk 0:03:00]}  d5 {[%clk 0:02:52]} 2. d4 {[%clk 0:02:59]}  c5 {[%clk 0:02:51]} 3. c3 {[%clk 0:02:56]}  cxd4 {[%clk 0:02:52]} 4. cxd4 {[%clk 0:02:55]}  Nc6 {[%clk 0:02:53]} 5. Nc3 {[%clk 0:02:55]}  Nf6 {[%clk 0:02:53]} 6. Bf4 {[%clk 0:02:55]}  g6 {[%clk 0:02:52]} 7. e3 {[%clk 0:02:53]}  Bg7 {[%clk 0:02:52]} 8. h3 {[%clk 0:02:49]}  O-O {[%clk 0:02:52]} 9. Bd3 {[%clk 0:02:48]}  Nd7 {[%clk 0:02:52]} 10. O-O {[%clk 0:02:18]}  e5 {[%clk 0:02:52]} 11. dxe5 {[%clk 0:02:18]}  Ndxe5 {[%clk 0:02:53]} 12. Nxe5 {[%clk 0:02:10]}  Nxe5 {[%clk 0:02:54]} 13. Be2 {[%clk 0:02:05]}  Be6 {[%clk 0:02:53]} 14. Rc1 {[%clk 0:02:01]}  a6 {[%clk 0:02:52]} 15. Na4 {[%clk 0:01:49]}  Rc8 {[%clk 0:02:39]} 16. Nc5 {[%clk 0:01:42]}  Qb6 {[%clk 0:02:36]} 17. Nxe6 {[%clk 0:01:41]}  fxe6 {[%clk 0:02:36]} 18. b3 {[%clk 0:01:23]}  a5 {[%clk 0:02:35]} 19. Bg4 {[%clk 0:01:20]}  Rxc1 {[%clk 0:02:26]} 20. Qxc1 {[%clk 0:01:20]}  Nxg4 {[%clk 0:02:12]} 21. hxg4 {[%clk 0:01:20]}  e5 {[%clk 0:02:08]} 22. Bg3 {[%clk 0:01:19]}  d4 {[%clk 0:02:00]} 23. Qc4+ {[%clk 0:01:18]}  Kh8 {[%clk 0:01:58]} 24. e4 {[%clk 0:01:16]}  h6 {[%clk 0:01:33]} 25. Rc1 {[%clk 0:01:12]}  Rf6 {[%clk 0:01:33]} 26. Bxe5 {[%clk 0:00:58]}  Rc6 {[%clk 0:01:33]} 27. Bxg7+ {[%clk 0:00:57]}  Kxg7 {[%clk 0:01:34]} 28. Qf1 {[%clk 0:00:56]}  a4 {[%clk 0:01:16]} 29. bxa4 {[%clk 0:00:51]}  Qb4 {[%clk 0:01:08]} 30. Rb1 {[%clk 0:00:44]}  Qe7 {[%clk 0:01:05]} 31. Qd3 {[%clk 0:00:43]}  Qd7 {[%clk 0:01:02]} 32. g3 {[%clk 0:00:36]}  Rc3 {[%clk 0:00:56]} 33. Qb5 {[%clk 0:00:30]}  Rc7 {[%clk 0:00:39]} 34. Qe5+ {[%clk 0:00:28]}  Kh7 {[%clk 0:00:39]} 35. Rd1 {[%clk 0:00:27]}  d3 {[%clk 0:00:39]} 36. Kg2 {[%clk 0:00:27]}  d2 {[%clk 0:00:39]} 37. Rxd2 {[%clk 0:00:27]}  Qf7 {[%clk 0:00:28]} 38. Qd5 {[%clk 0:00:26]}  Qe7 {[%clk 0:00:27]} 39. e5 {[%clk 0:00:26]}  h5 {[%clk 0:00:26]} 40. Qd6 {[%clk 0:00:25]}  hxg4 {[%clk 0:00:23]} 41. Rd4 {[%clk 0:00:21]}  Kh6 {[%clk 0:00:21]} 42. Rxg4 {[%clk 0:00:20]}  Qf7 {[%clk 0:00:16]} 43. e6 {[%clk 0:00:16]}  Qe7 {[%clk 0:00:16]} 44. Rh4+ {[%clk 0:00:14]}  Kg7 {[%clk 0:00:16]} 45. Qd4+ {[%clk 0:00:14]} 1-0


[Site "https://www.chess.com"]

[Event "Titled Tuesday Blitz November 01 Late 2022"]
[White "Dehtiarov, Roman"]
[Black "Girsh, Daniel"]
[WhiteFideId "14186640"]
[BlackFideId "30949190"]
[WhiteElo "2200"]
[BlackElo "2075"]
[Result "1-0"]
[Round "03"]
[TimeControl "180+1"]
[Date "2022.11.02"]
[WhiteClock "0:02:36"]
[BlackClock "0:01:27"]

1. e4 {[%clk 0:03:00]}  c5 {[%clk 0:02:59]} 2. Nc3 {[%clk 0:02:59]}  d6 {[%clk 0:03:00]} 3. f4 {[%clk 0:02:59]}  Nc6 {[%clk 0:03:00]} 4. Nf3 {[%clk 0:02:59]}  g6 {[%clk 0:03:00]} 5. Bb5 {[%clk 0:03:00]}  Bg7 {[%clk 0:03:00]} 6. Bxc6+ {[%clk 0:03:00]}  bxc6 {[%clk 0:03:00]} 7. O-O {[%clk 0:03:01]}  Nf6 {[%clk 0:02:57]} 8. Qe1 {[%clk 0:03:00]}  O-O {[%clk 0:02:58]} 9. d3 {[%clk 0:03:01]}  Rb8 {[%clk 0:02:57]} 10. b3 {[%clk 0:03:00]}  Nd7 {[%clk 0:02:53]} 11. Bd2 {[%clk 0:03:00]}  e6 {[%clk 0:02:51]} 12. Rd1 {[%clk 0:02:59]}  d5 {[%clk 0:02:46]} 13. Na4 {[%clk 0:02:59]}  Ba6 {[%clk 0:02:37]} 14. c4 {[%clk 0:02:58]}  d4 {[%clk 0:02:30]} 15. Ba5 {[%clk 0:02:54]}  Qe7 {[%clk 0:02:29]} 16. e5 {[%clk 0:02:53]}  Nb6 {[%clk 0:02:18]} 17. Nxc5 {[%clk 0:02:48]}  Nxc4 {[%clk 0:02:05]} 18. Nxa6 {[%clk 0:02:47]}  Ne3 {[%clk 0:01:52]} 19. Nxb8 {[%clk 0:02:45]}  Rxb8 {[%clk 0:01:53]} 20. Bd2 {[%clk 0:02:43]}  Nxf1 {[%clk 0:01:51]} 21. Qxf1 {[%clk 0:02:42]}  c5 {[%clk 0:01:49]} 22. Rc1 {[%clk 0:02:42]}  Bf8 {[%clk 0:01:48]} 23. Rc4 {[%clk 0:02:42]}  Qb7 {[%clk 0:01:48]} 24. Qc1 {[%clk 0:02:42]}  Qd5 {[%clk 0:01:48]} 25. Ng5 {[%clk 0:02:37]}  Be7 {[%clk 0:01:47]} 26. Ne4 {[%clk 0:02:37]}  Rb5 {[%clk 0:01:47]} 27. b4 {[%clk 0:02:34]}  cxb4 {[%clk 0:01:40]} 28. Rc8+ {[%clk 0:02:34]}  Kg7 {[%clk 0:01:40]} 29. f5 {[%clk 0:02:34]}  gxf5 {[%clk 0:01:34]} 30. Bh6+ {[%clk 0:02:34]}  Kg6 {[%clk 0:01:34]} 31. Rg8+ {[%clk 0:02:35]}  Kh5 {[%clk 0:01:33]} 32. Ng3+ {[%clk 0:02:36]}  Kh4 {[%clk 0:01:27]} 33. Qf4# {[%clk 0:02:36]} 1-0


[Site "https://www.chess.com"]

[Event "Titled Tuesday Blitz November 01 Late 2022"]
[White "Di Nicolantonio, Lucas"]
[Black "Szente Varga, Fruzsina"]
[WhiteFideId "680460"]
[BlackFideId "712264"]
[WhiteElo "2381"]
[BlackElo "1994"]
[Result "1-0"]
[Round "03"]
[TimeControl "180+1"]
[Date "2022.11.02"]
[WhiteClock "0:00:27"]
[BlackClock "0:00:09"]

1. f4 {[%clk 0:03:00]}  d5 {[%clk 0:02:57]} 2. Nf3 {[%clk 0:02:59]}  Nf6 {[%clk 0:02:57]} 3. g3 {[%clk 0:02:59]}  e6 {[%clk 0:02:57]} 4. Bg2 {[%clk 0:02:59]}  Bd6 {[%clk 0:02:57]} 5. d3 {[%clk 0:02:59]}  c5 {[%clk 0:02:55]} 6. O-O {[%clk 0:02:51]}  Nc6 {[%clk 0:02:54]} 7. e4 {[%clk 0:02:50]}  dxe4 {[%clk 0:02:51]} 8. dxe4 {[%clk 0:02:51]}  Nxe4 {[%clk 0:02:46]} 9. Ne5 {[%clk 0:02:51]}  Bxe5 {[%clk 0:01:39]} 10. Qxd8+ {[%clk 0:02:49]}  Nxd8 {[%clk 0:01:37]} 11. fxe5 {[%clk 0:02:49]}  f5 {[%clk 0:01:37]} 12. exf6 {[%clk 0:02:43]}  Nxf6 {[%clk 0:01:37]} 13. Bf4 {[%clk 0:02:31]}  Nf7 {[%clk 0:01:30]} 14. Nc3 {[%clk 0:02:28]}  O-O {[%clk 0:01:29]} 15. Nb5 {[%clk 0:02:20]}  e5 {[%clk 0:01:24]} 16. Be3 {[%clk 0:02:19]}  Nd7 {[%clk 0:01:20]} 17. Bd5 {[%clk 0:02:02]}  a6 {[%clk 0:01:12]} 18. Nd6 {[%clk 0:02:00]}  Nf6 {[%clk 0:00:59]} 19. Bxf7+ {[%clk 0:01:58]}  Rxf7 {[%clk 0:01:00]} 20. Nxf7 {[%clk 0:01:58]}  Kxf7 {[%clk 0:01:01]} 21. Bxc5 {[%clk 0:01:55]}  Bh3 {[%clk 0:01:00]} 22. Rfd1 {[%clk 0:01:53]}  Rc8 {[%clk 0:01:00]} 23. b4 {[%clk 0:01:49]}  Ne4 {[%clk 0:00:48]} 24. Rd5 {[%clk 0:01:31]}  Ng5 {[%clk 0:00:43]} 25. Kf2 {[%clk 0:01:23]}  b6 {[%clk 0:00:40]} 26. Bxb6 {[%clk 0:01:21]}  Rxc2+ {[%clk 0:00:39]} 27. Ke3 {[%clk 0:01:21]}  Rxh2 {[%clk 0:00:25]} 28. Rxe5 {[%clk 0:01:10]}  h6 {[%clk 0:00:25]} 29. Rc1 {[%clk 0:01:08]}  Bg4 {[%clk 0:00:22]} 30. Rf1+ {[%clk 0:01:00]}  Kg6 {[%clk 0:00:21]} 31. Rf2 {[%clk 0:00:48]}  Rh1 {[%clk 0:00:22]} 32. Ra5 {[%clk 0:00:40]}  Re1+ {[%clk 0:00:20]} 33. Kd2 {[%clk 0:00:40]}  Rd1+ {[%clk 0:00:20]} 34. Kc2 {[%clk 0:00:40]}  Rd6 {[%clk 0:00:18]} 35. Bc5 {[%clk 0:00:39]}  Rc6 {[%clk 0:00:17]} 36. Rf4 {[%clk 0:00:37]}  Bf5+ {[%clk 0:00:17]} 37. Kb2 {[%clk 0:00:36]}  h5 {[%clk 0:00:17]} 38. Be7 {[%clk 0:00:34]}  Ne4 {[%clk 0:00:17]} 39. Rfxf5 {[%clk 0:00:33]}  Kh6 {[%clk 0:00:12]} 40. Rxh5+ {[%clk 0:00:33]}  Kg6 {[%clk 0:00:13]} 41. Rhe5 {[%clk 0:00:31]}  Nd2 {[%clk 0:00:11]} 42. Rec5 {[%clk 0:00:28]}  Nc4+ {[%clk 0:00:11]} 43. Rxc4 {[%clk 0:00:28]}  Rxc4 {[%clk 0:00:11]} 44. Rxa6+ {[%clk 0:00:28]}  Kf5 {[%clk 0:00:11]} 45. Bc5 {[%clk 0:00:28]}  g5 {[%clk 0:00:11]} 46. a4 {[%clk 0:00:28]}  g4 {[%clk 0:00:11]} 47. Ra8 {[%clk 0:00:28]}  Ke4 {[%clk 0:00:11]} 48. Rd8 {[%clk 0:00:26]}  Kf3 {[%clk 0:00:11]} 49. Rd3+ {[%clk 0:00:26]}  Kg2 {[%clk 0:00:11]} 50. a5 {[%clk 0:00:26]}  Re4 {[%clk 0:00:10]} 51. a6 {[%clk 0:00:26]}  Re2+ {[%clk 0:00:09]} 52. Kc3 {[%clk 0:00:26]}  Rf2 {[%clk 0:00:09]} 53. Rd2 {[%clk 0:00:26]}  Rxd2 {[%clk 0:00:08]} 54. Kxd2 {[%clk 0:00:27]}  Kxg3 {[%clk 0:00:09]} 55. a7 {[%clk 0:00:27]}  Kf3 {[%clk 0:00:09]} 56. a8=Q+ {[%clk 0:00:27]} 1-0


[Site "https://www.chess.com"]

[Event "Titled Tuesday Blitz November 01 Late 2022"]
[White "Dilanyan, Grigor"]
[Black "Olenik Campa, Rudi"]
[WhiteFideId "13303570"]
[BlackFideId "14633264"]
[WhiteElo "2264"]
[BlackElo "2051"]
[Result "1-0"]
[Round "03"]
[TimeControl "180+1"]
[Date "2022.11.02"]
[WhiteClock "0:00:57"]
[BlackClock "0:00:01"]

1. e4 {[%clk 0:03:00]}  c5 {[%clk 0:02:59]} 2. Nf3 {[%clk 0:03:00]}  Nc6 {[%clk 0:02:59]} 3. Bb5 {[%clk 0:03:00]}  g6 {[%clk 0:02:59]} 4. O-O {[%clk 0:02:58]}  Bg7 {[%clk 0:02:59]} 5. Re1 {[%clk 0:02:58]}  e5 {[%clk 0:02:59]} 6. a3 {[%clk 0:02:39]}  Nge7 {[%clk 0:02:58]} 7. b4 {[%clk 0:02:38]}  d6 {[%clk 0:02:58]} 8. bxc5 {[%clk 0:02:35]}  dxc5 {[%clk 0:02:59]} 9. a4 {[%clk 0:02:35]}  O-O {[%clk 0:02:59]} 10. Ba3 {[%clk 0:02:36]}  b6 {[%clk 0:02:57]} 11. Nc3 {[%clk 0:02:34]}  h6 {[%clk 0:02:55]} 12. h3 {[%clk 0:02:34]}  Be6 {[%clk 0:02:54]} 13. Nd5 {[%clk 0:02:32]}  a6 {[%clk 0:02:49]} 14. Nxe7+ {[%clk 0:02:30]}  Nxe7 {[%clk 0:02:50]} 15. Bf1 {[%clk 0:02:29]}  Nc6 {[%clk 0:02:31]} 16. Rb1 {[%clk 0:02:29]}  f5 {[%clk 0:02:22]} 17. exf5 {[%clk 0:02:26]}  gxf5 {[%clk 0:02:23]} 18. d3 {[%clk 0:02:16]}  Rf6 {[%clk 0:02:10]} 19. Bb2 {[%clk 0:02:16]}  Nd4 {[%clk 0:01:16]} 20. Nxe5 {[%clk 0:02:08]}  Bd5 {[%clk 0:01:16]} 21. c3 {[%clk 0:01:56]}  Ne6 {[%clk 0:01:16]} 22. c4 {[%clk 0:01:55]}  Bb7 {[%clk 0:01:15]} 23. a5 {[%clk 0:01:50]}  Nf4 {[%clk 0:01:10]} 24. axb6 {[%clk 0:01:43]}  Rd6 {[%clk 0:00:52]} 25. Bc1 {[%clk 0:01:25]}  Qg5 {[%clk 0:00:43]} 26. g3 {[%clk 0:01:20]}  Bxe5 {[%clk 0:00:03]} 27. Rxe5 {[%clk 0:01:19]}  Rd4 {[%clk 0:00:01]} 28. Bxf4 {[%clk 0:00:57]} 1-0


[Site "https://www.chess.com"]